[Event "*** Titled Tuesday Blitz"]
[Site "Chess.com"]
[Date "2021.02.09"]
[Round "1"]
[White "MatthewG-p4p"]
[Black "dusanako"]
[Result "1-0"]
[WhiteElo "2815"]
[BlackElo "2410"]
[TimeControl "180+1"]
[EndTime "10:06:12 PST"]
[Termination "MatthewG-p4p won by resignation"]

1. d4 {[%clk 0:02:58.7]} 1... Nf6 {[%clk 0:02:46.7]} 2. Nf3 {[%clk 0:02:52.4]}
2... e6 {[%clk 0:02:45.8]} 3. e3 {[%clk 0:02:49.6]} 3... b6 {[%clk 0:02:42.6]}
4. Bd3 {[%clk 0:02:49.3]} 4... Bb7 {[%clk 0:02:42]} 5. O-O {[%clk 0:02:49.7]}
5... g6 {[%clk 0:02:36.4]} 6. b3 {[%clk 0:02:49.2]} 6... Bg7 {[%clk 0:02:35.7]}
7. Bb2 {[%clk 0:02:49.8]} 7... O-O {[%clk 0:02:34.4]} 8. c4 {[%clk 0:02:48.7]}
8... d6 {[%clk 0:02:33.5]} 9. Nbd2 {[%clk 0:02:43.6]} 9... Nbd7 {[%clk
0:02:27.8]} 10. Qe2 {[%clk 0:02:35.9]} 10... Qe7 {[%clk 0:02:26.2]} 11. e4
{[%clk 0:02:15.8]} 11... e5 {[%clk 0:02:25.7]} 12. d5 {[%clk 0:02:14]} 12... a5
{[%clk 0:02:23.2]} 13. a3 {[%clk 0:02:13]} 13... Nh5 {[%clk 0:02:19.7]} 14. g3
{[%clk 0:02:12.3]} 14... c6 {[%clk 0:01:54.5]} 15. b4 {[%clk 0:02:09.9]} 15...
a4 {[%clk 0:01:51]} 16. dxc6 {[%clk 0:02:06.6]} 16... Bxc6 {[%clk 0:01:50.3]}
17. Rad1 {[%clk 0:02:07.5]} 17... f5 {[%clk 0:01:45.9]} 18. exf5 {[%clk
0:02:05.9]} 18... gxf5 {[%clk 0:01:45.7]} 19. Nd4 {[%clk 0:01:58.5]} 19... Bb7
{[%clk 0:01:38.9]} 20. Qxh5 {[%clk 0:01:42.5]} 20... exd4 {[%clk 0:01:35.4]} 21.
Bxf5 {[%clk 0:01:42.5]} 21... Nf6 {[%clk 0:01:34.9]} 22. Qh3 {[%clk 0:01:42.6]}
22... Rae8 {[%clk 0:01:30.7]} 23. Bxd4 {[%clk 0:01:41.2]} 23... h6 {[%clk
0:01:25.6]} 24. Qh4 {[%clk 0:01:29.7]} 24... Nh7 {[%clk 0:01:10]} 25. Qxe7
{[%clk 0:01:22.3]} 25... Rxe7 {[%clk 0:01:09.5]} 26. Bxg7 {[%clk 0:01:17.1]}
26... Rxf5 {[%clk 0:01:04.5]} 27. Bxh6 {[%clk 0:01:16.4]} 27... Re6 {[%clk
0:00:55]} 28. Be3 {[%clk 0:01:13.4]} 28... Nf6 {[%clk 0:00:50.7]} 29. h3 {[%clk
0:01:13.8]} 29... Rh5 {[%clk 0:00:47.8]} 30. h4 {[%clk 0:01:06.8]} 30... Ng4
{[%clk 0:00:44.9]} 31. Bf4 {[%clk 0:01:05.2]} 31... Rg6 {[%clk 0:00:36.6]} 32.
Rfe1 {[%clk 0:01:01.5]} 32... Ne5 {[%clk 0:00:35.8]} 33. Bxe5 {[%clk 0:00:55.9]}
33... dxe5 {[%clk 0:00:34.8]} 34. Kf1 {[%clk 0:00:55.1]} 34... Rxh4 {[%clk
0:00:30.3]} 35. gxh4 {[%clk 0:00:54.6]} 35... Bg2+ {[%clk 0:00:28.1]} 36. Ke2
{[%clk 0:00:55.2]} 1-0

[Event "*** Titled Tuesday Blitz"]
[Site "Chess.com"]
[Date "2021.02.09"]
[Round "1"]
[White "Azde"]
[Black "TimofeevAr"]
[Result "0-1"]
[WhiteElo "2438"]
[BlackElo "2868"]
[TimeControl "180+1"]
[EndTime "10:06:15 PST"]
[Termination "TimofeevAr won by resignation"]

1. d4 {[%clk 0:03:00.9]} 1... Nf6 {[%clk 0:02:58.2]} 2. c4 {[%clk 0:03:00.2]}
2... g6 {[%clk 0:02:58.2]} 3. Nc3 {[%clk 0:03:00.1]} 3... d5 {[%clk 0:02:58.2]}
4. Bf4 {[%clk 0:02:59.4]} 4... Bg7 {[%clk 0:02:57.7]} 5. e3 {[%clk 0:02:59.1]}
5... O-O {[%clk 0:02:56.7]} 6. cxd5 {[%clk 0:02:59.1]} 6... Nxd5 {[%clk
0:02:56.3]} 7. Nxd5 {[%clk 0:03:00]} 7... Qxd5 {[%clk 0:02:56.6]} 8. Bxc7 {[%clk
0:03:00.5]} 8... Na6 {[%clk 0:02:52]} 9. Bxa6 {[%clk 0:02:59.6]} 9... bxa6
{[%clk 0:02:50.9]} 10. Nf3 {[%clk 0:02:53.8]} 10... Qb7 {[%clk 0:02:49.2]} 11.
Bg3 {[%clk 0:02:31.9]} 11... Qxb2 {[%clk 0:02:48.4]} 12. O-O {[%clk 0:02:31.8]}
12... Be6 {[%clk 0:02:47.9]} 13. Qa4 {[%clk 0:02:26.6]} 13... Rfc8 {[%clk
0:02:38.3]} 14. Rfb1 {[%clk 0:01:59.8]} 14... Qe2 {[%clk 0:02:37.1]} 15. Re1
{[%clk 0:01:47.2]} 15... Qc4 {[%clk 0:02:35.3]} 16. Qxc4 {[%clk 0:01:44.7]}
16... Rxc4 {[%clk 0:02:30.9]} 17. a4 {[%clk 0:01:39.4]} 17... a5 {[%clk
0:02:22.9]} 18. Nd2 {[%clk 0:01:29.5]} 18... Rb4 {[%clk 0:02:22.1]} 19. Ne4
{[%clk 0:01:26.1]} 19... Rc8 {[%clk 0:02:21.4]} 20. Nc5 {[%clk 0:01:05.5]} 20...
Rxc5 {[%clk 0:01:58.9]} 21. dxc5 {[%clk 0:01:06.4]} 21... Bxa1 {[%clk
0:01:58.3]} 22. Rxa1 {[%clk 0:01:06]} 22... Rc4 {[%clk 0:01:59]} 23. Bb8 {[%clk
0:01:01.9]} 23... a6 {[%clk 0:01:48]} 24. Ba7 {[%clk 0:01:01.9]} 24... Bd7
{[%clk 0:01:48.2]} 25. h3 {[%clk 0:00:35]} 25... Bxa4 {[%clk 0:01:41.1]} 26. Bb6
{[%clk 0:00:34.8]} 26... f6 {[%clk 0:01:22.1]} 27. Bxa5 {[%clk 0:00:33]} 27...
Bb5 {[%clk 0:01:21.8]} 28. Bb6 {[%clk 0:00:30.7]} 28... Kf7 {[%clk 0:01:22]} 29.
Kh2 {[%clk 0:00:29.9]} 29... g5 {[%clk 0:01:21.7]} 30. Kg3 {[%clk 0:00:29.9]}
30... h5 {[%clk 0:01:21.2]} 31. Ra2 {[%clk 0:00:20.4]} 31... h4+ {[%clk
0:01:20.9]} 32. Kf3 {[%clk 0:00:18.6]} 32... Bc6+ {[%clk 0:01:18.7]} 33. Ke2
{[%clk 0:00:18.5]} 33... Bxg2 {[%clk 0:01:18.7]} 34. Rxa6 {[%clk 0:00:18.2]}
34... Bxh3 {[%clk 0:01:18.8]} 35. Ra1 {[%clk 0:00:15.9]} 35... Bg2 {[%clk
0:01:17.8]} 36. Ra5 {[%clk 0:00:04.4]} 36... h3 {[%clk 0:01:15.1]} 37. Bc7
{[%clk 0:00:04.8]} 37... e5 {[%clk 0:01:14.9]} 0-1

[Event "*** Titled Tuesday Blitz"]
[Site "Chess.com"]
[Date "2021.02.09"]
[Round "1"]
[White "CrushingKings"]
[Black "Rozum_Ivan"]
[Result "1/2-1/2"]
[WhiteElo "2401"]
[BlackElo "2729"]
[TimeControl "180+1"]
[EndTime "10:06:15 PST"]
[Termination "Game drawn by repetition"]

1. e4 {[%clk 0:03:00.9]} 1... e5 {[%clk 0:02:57.1]} 2. Nf3 {[%clk 0:02:59.2]}
2... Nc6 {[%clk 0:02:57.6]} 3. Bc4 {[%clk 0:02:58.5]} 3... Nf6 {[%clk 0:02:55]}
4. d3 {[%clk 0:02:58.4]} 4... Be7 {[%clk 0:02:54.5]} 5. O-O {[%clk 0:02:55.5]}
5... O-O {[%clk 0:02:54.7]} 6. Re1 {[%clk 0:02:55.1]} 6... d6 {[%clk 0:02:53.6]}
7. a4 {[%clk 0:02:54.3]} 7... Be6 {[%clk 0:02:52.4]} 8. h3 {[%clk 0:02:44.3]}
8... Bxc4 {[%clk 0:02:50.4]} 9. dxc4 {[%clk 0:02:43.8]} 9... a5 {[%clk
0:02:46.7]} 10. Nc3 {[%clk 0:02:42]} 10... Nb8 {[%clk 0:02:39.3]} 11. Nd5 {[%clk
0:02:37.3]} 11... Nxd5 {[%clk 0:02:32.3]} 12. cxd5 {[%clk 0:02:36.2]} 12... Nd7
{[%clk 0:02:32.7]} 13. Be3 {[%clk 0:02:31.5]} 13... f5 {[%clk 0:02:18.9]} 14.
exf5 {[%clk 0:02:29.4]} 14... Rxf5 {[%clk 0:02:19.8]} 15. Nd2 {[%clk 0:02:16.2]}
15... Bg5 {[%clk 0:02:14]} 16. Ne4 {[%clk 0:02:13.2]} 16... Bxe3 {[%clk
0:02:13.9]} 17. Rxe3 {[%clk 0:02:12]} 17... Nf6 {[%clk 0:02:10.8]} 18. Nxf6+
{[%clk 0:02:04.2]} 18... Qxf6 {[%clk 0:02:11.7]} 19. Qe2 {[%clk 0:02:04]} 19...
Rf8 {[%clk 0:02:10.3]} 20. Rf1 {[%clk 0:02:00.1]} 20... Qf7 {[%clk 0:02:04.8]}
21. c4 {[%clk 0:01:55.3]} 21... b6 {[%clk 0:02:04.5]} 22. b3 {[%clk 0:01:50.8]}
22... Qg6 {[%clk 0:02:03.6]} 23. Qg4 {[%clk 0:01:40.2]} 23... Rg5 {[%clk
0:02:02.2]} 24. Qe4 {[%clk 0:01:39.1]} 24... Qh5 {[%clk 0:01:54.8]} 25. Rfe1
{[%clk 0:00:52.5]} 25... Rf4 {[%clk 0:01:52]} 26. Qxf4 {[%clk 0:00:48.8]} 26...
exf4 {[%clk 0:01:38.7]} 27. Re8+ {[%clk 0:00:49.7]} 27... Kf7 {[%clk 0:00:26.5]}
28. R1e7+ {[%clk 0:00:46.4]} 28... Kf6 {[%clk 0:00:26.7]} 29. Re6+ {[%clk
0:00:46.2]} 29... Kf7 {[%clk 0:00:25.3]} 30. R6e7+ {[%clk 0:00:45.5]} 30... Kg6
{[%clk 0:00:24.8]} 31. Re6+ {[%clk 0:00:44.9]} 31... Kf7 {[%clk 0:00:22.8]} 32.
R6e7+ {[%clk 0:00:44.3]} 1/2-1/2

[Event "*** Titled Tuesday Blitz"]
[Site "Chess.com"]
[Date "2021.02.09"]
[Round "1"]
[White "bascheyaro"]
[Black "hleol"]
[Result "1-0"]
[WhiteElo "2741"]
[BlackElo "2395"]
[TimeControl "180+1"]
[EndTime "10:06:18 PST"]
[Termination "bascheyaro won by checkmate"]

1. d4 {[%clk 0:03:00.8]} 1... d5 {[%clk 0:02:59.5]} 2. c4 {[%clk 0:02:59.7]}
2... c6 {[%clk 0:02:59.4]} 3. Nc3 {[%clk 0:02:59.8]} 3... Nf6 {[%clk 0:02:59.4]}
4. Nf3 {[%clk 0:02:59.8]} 4... e6 {[%clk 0:02:59.1]} 5. Bg5 {[%clk 0:02:59.6]}
5... Be7 {[%clk 0:02:58.7]} 6. e3 {[%clk 0:02:59.9]} 6... h6 {[%clk 0:02:57.4]}
7. Bh4 {[%clk 0:02:59.7]} 7... Nbd7 {[%clk 0:02:57.4]} 8. Qc2 {[%clk 0:02:59.7]}
8... O-O {[%clk 0:02:57.6]} 9. Bd3 {[%clk 0:02:58.9]} 9... dxc4 {[%clk
0:02:41.8]} 10. Bxc4 {[%clk 0:02:59.8]} 10... b5 {[%clk 0:02:42.7]} 11. Bb3
{[%clk 0:02:59.2]} 11... Bb7 {[%clk 0:02:43.6]} 12. O-O {[%clk 0:02:58.5]} 12...
Rc8 {[%clk 0:02:42.3]} 13. Qe2 {[%clk 0:02:57.3]} 13... a6 {[%clk 0:02:41.4]}
14. a4 {[%clk 0:02:56.4]} 14... b4 {[%clk 0:02:39.2]} 15. Na2 {[%clk 0:02:51.7]}
15... c5 {[%clk 0:02:37.2]} 16. Rfd1 {[%clk 0:02:50.5]} 16... Qb6 {[%clk
0:02:34.6]} 17. Rac1 {[%clk 0:02:43.1]} 17... a5 {[%clk 0:02:28]} 18. Bc4 {[%clk
0:02:39]} 18... cxd4 {[%clk 0:02:24.8]} 19. exd4 {[%clk 0:02:33.9]} 19... Bd6
{[%clk 0:02:19.1]} 20. b3 {[%clk 0:02:31.1]} 20... Ne4 {[%clk 0:02:16.8]} 21.
Bd3 {[%clk 0:02:25.2]} 21... Nc3 {[%clk 0:02:09.8]} 22. Nxc3 {[%clk 0:02:24.4]}
22... Rxc3 {[%clk 0:02:09.7]} 23. Rxc3 {[%clk 0:02:22.7]} 23... bxc3 {[%clk
0:02:10.6]} 24. Bc2 {[%clk 0:02:22.9]} 24... Nb8 {[%clk 0:01:57.6]} 25. Qd3
{[%clk 0:02:21.8]} 25... f5 {[%clk 0:01:51.6]} 26. Qxc3 {[%clk 0:02:20.9]} 26...
Rc8 {[%clk 0:01:50.9]} 27. Qd2 {[%clk 0:02:19]} 27... Bxf3 {[%clk 0:01:43.1]}
28. gxf3 {[%clk 0:02:19.9]} 28... Qc6 {[%clk 0:01:43.5]} 29. Bd3 {[%clk
0:02:13.8]} 29... Qxf3 {[%clk 0:01:43.5]} 30. Bc4 {[%clk 0:01:38.7]} 30... Qg4+
{[%clk 0:01:35.4]} 31. Bg3 {[%clk 0:01:38.7]} 31... f4 {[%clk 0:01:34.5]} 32.
Re1 {[%clk 0:01:32.3]} 32... Re8 {[%clk 0:01:15.8]} 33. Re4 {[%clk 0:01:02.5]}
33... Qg6 {[%clk 0:01:09.9]} 34. Rxf4 {[%clk 0:00:58]} 34... Bxf4 {[%clk
0:01:09.9]} 35. Qxf4 {[%clk 0:00:58.9]} 35... Nd7 {[%clk 0:01:09.1]} 36. Qd6
{[%clk 0:00:57.7]} 36... Nf8 {[%clk 0:01:07]} 37. Qc6 {[%clk 0:00:54.6]} 37...
h5 {[%clk 0:01:05.8]} 38. h4 {[%clk 0:00:54.1]} 38... Rd8 {[%clk 0:01:03.7]} 39.
Qb6 {[%clk 0:00:50.6]} 39... Qf6 {[%clk 0:00:58.8]} 40. Be5 {[%clk 0:00:47.2]}
40... Qxh4 {[%clk 0:00:57.2]} 41. Bxe6+ {[%clk 0:00:45.2]} 41... Nxe6 {[%clk
0:00:56.7]} 42. Qxe6+ {[%clk 0:00:46.1]} 42... Kh8 {[%clk 0:00:57.1]} 43. Qh6+
{[%clk 0:00:45.5]} 43... Kg8 {[%clk 0:00:56.5]} 44. Qxg7# {[%clk 0:00:45.8]} 1-0

[Event "*** Titled Tuesday Blitz"]
[Site "Chess.com"]
[Date "2021.02.09"]
[Round "1"]
[White "Iskusnyh"]
[Black "Michaelson_11"]
[Result "1-0"]
[WhiteElo "2583"]
[BlackElo "2280"]
[TimeControl "180+1"]
[EndTime "10:06:18 PST"]
[Termination "Iskusnyh won by resignation"]

1. d4 {[%clk 0:03:00.1]} 1... Nf6 {[%clk 0:02:58.6]} 2. c4 {[%clk 0:02:59.3]}
2... g6 {[%clk 0:02:58.3]} 3. g3 {[%clk 0:02:59.1]} 3... Bg7 {[%clk 0:02:57.5]}
4. Bg2 {[%clk 0:02:59.6]} 4... d6 {[%clk 0:02:57]} 5. Nc3 {[%clk 0:02:59.8]}
5... O-O {[%clk 0:02:57.4]} 6. Nf3 {[%clk 0:03:00.4]} 6... c6 {[%clk 0:02:56.5]}
7. O-O {[%clk 0:03:00.1]} 7... Qb6 {[%clk 0:02:57.2]} 8. b3 {[%clk 0:02:51.8]}
8... e5 {[%clk 0:02:48.6]} 9. e3 {[%clk 0:02:47.5]} 9... Re8 {[%clk 0:02:35.2]}
10. h3 {[%clk 0:02:35.6]} 10... Na6 {[%clk 0:02:06.1]} 11. a4 {[%clk 0:02:22.7]}
11... Nc7 {[%clk 0:02:01.9]} 12. a5 {[%clk 0:02:17.3]} 12... Qa6 {[%clk
0:01:56.9]} 13. Ba3 {[%clk 0:02:02.2]} 13... e4 {[%clk 0:01:22.9]} 14. Nd2
{[%clk 0:02:00]} 14... d5 {[%clk 0:01:21.7]} 15. Qc2 {[%clk 0:01:44.5]} 15...
Bf5 {[%clk 0:01:13.1]} 16. Bd6 {[%clk 0:01:40.3]} 16... Rac8 {[%clk 0:01:07.4]}
17. Rfc1 {[%clk 0:01:36.3]} 17... h5 {[%clk 0:00:55.2]} 18. Bf1 {[%clk
0:01:33.3]} 18... dxc4 {[%clk 0:00:15.1]} 19. bxc4 {[%clk 0:01:07.6]} 19... c5
{[%clk 0:00:08.6]} 20. Bxc5 {[%clk 0:01:06.9]} 20... Qc6 {[%clk 0:00:08.6]} 21.
Bxa7 {[%clk 0:01:00.4]} 21... Na6 {[%clk 0:00:08.6]} 22. Rab1 {[%clk 0:00:55.7]}
22... Nd7 {[%clk 0:00:08.3]} 23. Bg2 {[%clk 0:00:45.1]} 23... h4 {[%clk
0:00:03]} 24. g4 {[%clk 0:00:44.3]} 1-0

[Event "*** Titled Tuesday Blitz"]
[Site "Chess.com"]
[Date "2021.02.09"]
[Round "1"]
[White "jorquerino"]
[Black "francyIM"]
[Result "1-0"]
[WhiteElo "2278"]
[BlackElo "2550"]
[TimeControl "180+1"]
[EndTime "10:06:18 PST"]
[Termination "jorquerino won by resignation"]

1. e4 {[%clk 0:03:00.9]} 1... e5 {[%clk 0:02:56.5]} 2. Nc3 {[%clk 0:02:59.9]}
2... Nf6 {[%clk 0:02:55.8]} 3. g3 {[%clk 0:02:59.4]} 3... d5 {[%clk 0:02:52.7]}
4. exd5 {[%clk 0:02:58.9]} 4... Nxd5 {[%clk 0:02:53.6]} 5. Bg2 {[%clk
0:02:59.2]} 5... Nxc3 {[%clk 0:02:53.8]} 6. bxc3 {[%clk 0:02:59.7]} 6... Bd6
{[%clk 0:02:53.5]} 7. Nf3 {[%clk 0:02:59.2]} 7... O-O {[%clk 0:02:54.4]} 8. O-O
{[%clk 0:02:58.9]} 8... Nc6 {[%clk 0:02:51.4]} 9. Rb1 {[%clk 0:02:58]} 9... e4
{[%clk 0:02:41.5]} 10. Nd4 {[%clk 0:02:56.5]} 10... Nxd4 {[%clk 0:02:41.4]} 11.
cxd4 {[%clk 0:02:57.4]} 11... f5 {[%clk 0:02:41.4]} 12. d3 {[%clk 0:02:52.2]}
12... exd3 {[%clk 0:02:40.4]} 13. Qxd3 {[%clk 0:02:51.3]} 13... c6 {[%clk
0:02:40.2]} 14. d5 {[%clk 0:02:40.1]} 14... c5 {[%clk 0:02:39.9]} 15. c4 {[%clk
0:02:38.9]} 15... b6 {[%clk 0:02:39.3]} 16. f4 {[%clk 0:02:27.6]} 16... Bd7
{[%clk 0:02:36.5]} 17. Bb2 {[%clk 0:02:20.6]} 17... Re8 {[%clk 0:02:34]} 18.
Rfe1 {[%clk 0:02:19.7]} 18... Qc7 {[%clk 0:02:32.3]} 19. Qc3 {[%clk 0:02:08.2]}
19... Ba4 {[%clk 0:02:29.1]} 20. Re6 {[%clk 0:01:39.3]} 20... Rad8 {[%clk
0:02:24.4]} 21. Rbe1 {[%clk 0:01:37.7]} 21... Rf8 {[%clk 0:02:15.2]} 22. Re7
{[%clk 0:01:27.2]} 22... Rf7 {[%clk 0:02:11.3]} 23. Rxc7 {[%clk 0:01:22.8]}
23... Rxc7 {[%clk 0:02:11.2]} 24. Re6 {[%clk 0:01:16.9]} 24... Rf7 {[%clk
0:02:10.6]} 25. h4 {[%clk 0:01:15.4]} 25... Bf8 {[%clk 0:02:05.2]} 26. d6 {[%clk
0:00:59]} 26... Bxd6 {[%clk 0:01:53.5]} 27. Bd5 {[%clk 0:00:56.2]} 27... Kf8
{[%clk 0:01:23.2]} 28. h5 {[%clk 0:00:48.5]} 28... Be7 {[%clk 0:01:11.6]} 29. h6
{[%clk 0:00:40.4]} 29... Bf6 {[%clk 0:01:06.7]} 30. Rxf6 {[%clk 0:00:38.8]}
30... gxf6 {[%clk 0:00:58.5]} 31. Bxf7 {[%clk 0:00:38]} 31... Rd1+ {[%clk
0:00:59]} 32. Kf2 {[%clk 0:00:34.9]} 32... Kxf7 {[%clk 0:00:54.3]} 33. Qxf6+
{[%clk 0:00:32.5]} 33... Ke8 {[%clk 0:00:55.2]} 34. Qh8+ {[%clk 0:00:22.2]}
34... Ke7 {[%clk 0:00:55.1]} 35. Qxh7+ {[%clk 0:00:22.6]} 35... Ke6 {[%clk
0:00:54.6]} 36. Qg6+ {[%clk 0:00:19.7]} 1-0

[Event "*** Titled Tuesday Blitz"]
[Site "Chess.com"]
[Date "2021.02.09"]
[Round "1"]
[White "NikolaMa2000"]
[Black "BigAl"]
[Result "0-1"]
[WhiteElo "1813"]
[BlackElo "2471"]
[TimeControl "180+1"]
[EndTime "10:06:18 PST"]
[Termination "BigAl won by resignation"]

1. d4 {[%clk 0:03:00.9]} 1... g6 {[%clk 0:02:57.7]} 2. c4 {[%clk 0:03:00.2]}
2... Bg7 {[%clk 0:02:58.3]} 3. Nc3 {[%clk 0:02:59.4]} 3... Nf6 {[%clk
0:02:58.9]} 4. e4 {[%clk 0:02:59.2]} 4... O-O {[%clk 0:02:59.5]} 5. f4 {[%clk
0:02:59]} 5... d6 {[%clk 0:02:57.6]} 6. Nf3 {[%clk 0:02:57]} 6... c5 {[%clk
0:02:58.3]} 7. d5 {[%clk 0:02:51.3]} 7... e6 {[%clk 0:02:58]} 8. dxe6 {[%clk
0:02:50.9]} 8... Bxe6 {[%clk 0:02:55.8]} 9. Bd3 {[%clk 0:02:48.4]} 9... Bg4
{[%clk 0:02:53.4]} 10. O-O {[%clk 0:02:36.9]} 10... Nc6 {[%clk 0:02:52.9]} 11.
Be3 {[%clk 0:02:19.7]} 11... Nd4 {[%clk 0:02:42.8]} 12. Bxd4 {[%clk 0:02:14.5]}
12... cxd4 {[%clk 0:02:42.6]} 13. Nb5 {[%clk 0:02:14.7]} 13... Nh5 {[%clk
0:02:36.6]} 14. h3 {[%clk 0:01:49.7]} 14... Bd7 {[%clk 0:02:21.5]} 15. Nxd6
{[%clk 0:00:48]} 15... Nxf4 {[%clk 0:02:19.4]} 16. c5 {[%clk 0:00:43.9]} 16...
b6 {[%clk 0:02:00.8]} 17. b4 {[%clk 0:00:43]} 17... a5 {[%clk 0:01:59.9]} 18. a3
{[%clk 0:00:42.1]} 18... axb4 {[%clk 0:02:00.1]} 19. Nh2 {[%clk 0:00:19.8]}
19... Qg5 {[%clk 0:01:38.7]} 20. g4 {[%clk 0:00:17.1]} 20... bxc5 {[%clk
0:01:31.1]} 21. Bc4 {[%clk 0:00:13.5]} 21... Be6 {[%clk 0:01:17.3]} 22. axb4
{[%clk 0:00:12.8]} 22... Rxa1 {[%clk 0:01:15.5]} 23. Qxa1 {[%clk 0:00:10]} 23...
Bxc4 {[%clk 0:01:02.7]} 24. Nxc4 {[%clk 0:00:10.9]} 24... cxb4 {[%clk
0:00:57.7]} 25. Rf3 {[%clk 0:00:07.6]} 25... d3 {[%clk 0:00:53]} 26. Qc1 {[%clk
0:00:06]} 26... Ne2+ {[%clk 0:00:52.5]} 0-1

[Event "*** Titled Tuesday Blitz"]
[Site "Chess.com"]
[Date "2021.02.09"]
[Round "1"]
[White "JoliyRoger"]
[Black "KuzubovYuriy"]
[Result "0-1"]
[WhiteElo "2415"]
[BlackElo "2820"]
[TimeControl "180+1"]
[EndTime "10:06:21 PST"]
[Termination "KuzubovYuriy won on time"]

1. d4 {[%clk 0:02:59.6]} 1... Nf6 {[%clk 0:02:59.4]} 2. c4 {[%clk 0:03:00.1]}
2... e6 {[%clk 0:02:59.8]} 3. Nf3 {[%clk 0:03:00.6]} 3... d5 {[%clk 0:03:00.1]}
4. cxd5 {[%clk 0:03:00.5]} 4... exd5 {[%clk 0:03:00.1]} 5. Nc3 {[%clk
0:03:01.3]} 5... c6 {[%clk 0:03:00.7]} 6. Bg5 {[%clk 0:03:01.8]} 6... Bf5 {[%clk
0:03:00.1]} 7. e3 {[%clk 0:03:01.6]} 7... Nbd7 {[%clk 0:02:59.9]} 8. Nh4 {[%clk
0:02:59.8]} 8... Be6 {[%clk 0:02:52]} 9. Nf3 {[%clk 0:02:56.3]} 9... h6 {[%clk
0:02:48.4]} 10. Bh4 {[%clk 0:02:55.9]} 10... Bf5 {[%clk 0:02:48.4]} 11. Bd3
{[%clk 0:02:55.3]} 11... Bxd3 {[%clk 0:02:46]} 12. Qxd3 {[%clk 0:02:55.8]} 12...
Be7 {[%clk 0:02:45]} 13. O-O {[%clk 0:02:50.7]} 13... O-O {[%clk 0:02:44.9]} 14.
Bxf6 {[%clk 0:02:50.7]} 14... Bxf6 {[%clk 0:02:40.2]} 15. Rab1 {[%clk
0:02:51.6]} 15... a6 {[%clk 0:02:36]} 16. b4 {[%clk 0:02:50.3]} 16... b5 {[%clk
0:02:33.6]} 17. e4 {[%clk 0:02:46.4]} 17... dxe4 {[%clk 0:02:32]} 18. Qxe4
{[%clk 0:02:38.4]} 18... Rc8 {[%clk 0:02:29.9]} 19. Rfd1 {[%clk 0:02:33.9]}
19... Re8 {[%clk 0:02:29.1]} 20. Qf4 {[%clk 0:02:30]} 20... Qc7 {[%clk
0:02:19.5]} 21. Qg4 {[%clk 0:01:55.4]} 21... g6 {[%clk 0:02:11.6]} 22. h4 {[%clk
0:01:51.1]} 22... Bg7 {[%clk 0:02:11.2]} 23. Rbc1 {[%clk 0:01:39.5]} 23... Nf6
{[%clk 0:02:10.6]} 24. Qh3 {[%clk 0:01:38.2]} 24... Qd6 {[%clk 0:01:58.5]} 25.
a3 {[%clk 0:01:25.7]} 25... a5 {[%clk 0:01:56.8]} 26. d5 {[%clk 0:01:05.6]}
26... axb4 {[%clk 0:01:28.5]} 27. axb4 {[%clk 0:01:03.7]} 27... cxd5 {[%clk
0:01:23.4]} 28. Nxb5 {[%clk 0:00:23.2]} 28... Rxc1 {[%clk 0:01:23.1]} 29. Nxd6
{[%clk 0:00:10.1]} 29... Rxd1+ {[%clk 0:01:23]} 30. Kh2 {[%clk 0:00:11]} 30...
Re6 {[%clk 0:01:17.3]} 31. Nb7 {[%clk 0:00:03.3]} 31... h5 {[%clk 0:01:12.7]}
32. Nc5 {[%clk 0:00:02.3]} 32... Ng4+ {[%clk 0:01:12]} 33. Kg3 {[%clk 0:00:03]}
33... Re2 {[%clk 0:01:06.4]} 0-1

[Event "*** Titled Tuesday Blitz"]
[Site "Chess.com"]
[Date "2021.02.09"]
[Round "1"]
[White "Sadykov_Ramil"]
[Black "Guzman70"]
[Result "0-1"]
[WhiteElo "2542"]
[BlackElo "2263"]
[TimeControl "180+1"]
[EndTime "10:06:22 PST"]
[Termination "Guzman70 won by resignation"]

1. e4 {[%clk 0:03:00.1]} 1... g6 {[%clk 0:02:58.4]} 2. d4 {[%clk 0:02:59.9]}
2... Bg7 {[%clk 0:02:59]} 3. Nc3 {[%clk 0:03:00]} 3... d6 {[%clk 0:02:59.7]} 4.
Be3 {[%clk 0:03:00]} 4... a6 {[%clk 0:03:00.2]} 5. h4 {[%clk 0:02:59.1]} 5... h5
{[%clk 0:02:59.2]} 6. Nh3 {[%clk 0:02:58.7]} 6... Bxh3 {[%clk 0:02:57.9]} 7.
Rxh3 {[%clk 0:02:59.6]} 7... Nc6 {[%clk 0:02:57.4]} 8. Qd2 {[%clk 0:02:51.5]}
8... Nf6 {[%clk 0:02:57.2]} 9. f3 {[%clk 0:02:48.2]} 9... b5 {[%clk 0:02:50]}
10. O-O-O {[%clk 0:02:46.3]} 10... b4 {[%clk 0:02:50]} 11. Na4 {[%clk
0:02:39.4]} 11... O-O {[%clk 0:02:48.5]} 12. Kb1 {[%clk 0:02:35.5]} 12... Qd7
{[%clk 0:02:46.4]} 13. b3 {[%clk 0:02:30.6]} 13... Rfb8 {[%clk 0:02:37.2]} 14.
Rh1 {[%clk 0:02:15.9]} 14... Na7 {[%clk 0:02:36.2]} 15. Bh6 {[%clk 0:02:04.7]}
15... Nb5 {[%clk 0:02:31.5]} 16. Bxg7 {[%clk 0:01:54.5]} 16... Na3+ {[%clk
0:02:29.3]} 17. Kb2 {[%clk 0:01:36.4]} 17... Kxg7 {[%clk 0:02:27.6]} 18. g4
{[%clk 0:01:36]} 18... hxg4 {[%clk 0:02:26.8]} 19. h5 {[%clk 0:01:36.2]} 19...
gxf3 {[%clk 0:02:21.6]} 20. hxg6 {[%clk 0:01:29.8]} 20... Rh8 {[%clk 0:02:20.7]}
21. Rxh8 {[%clk 0:01:16]} 21... Rxh8 {[%clk 0:02:21]} 22. gxf7 {[%clk
0:01:16.7]} 22... Kxf7 {[%clk 0:02:20]} 23. Bd3 {[%clk 0:01:11.9]} 23... Qg4
{[%clk 0:02:13.2]} 24. Qxb4 {[%clk 0:01:06.3]} 24... f2 {[%clk 0:02:13]} 25. Rf1
{[%clk 0:00:57]} 25... Nb5 {[%clk 0:02:10.8]} 26. Bxb5 {[%clk 0:00:45.8]} 26...
axb5 {[%clk 0:02:10.2]} 27. Qxb5 {[%clk 0:00:46.7]} 27... Qxe4 {[%clk
0:02:03.3]} 28. Qc4+ {[%clk 0:00:38.8]} 28... d5 {[%clk 0:01:54.2]} 29. Qc3
{[%clk 0:00:37.7]} 29... Rh2 {[%clk 0:01:44.5]} 30. Nc5 {[%clk 0:00:30.1]} 30...
Qe2 {[%clk 0:01:43.9]} 31. Qd3 {[%clk 0:00:27]} 31... Qxd3 {[%clk 0:01:40.8]}
32. Nxd3 {[%clk 0:00:27.1]} 32... Ne4 {[%clk 0:01:40.7]} 33. a4 {[%clk
0:00:25.4]} 33... Ke6 {[%clk 0:01:32.2]} 34. a5 {[%clk 0:00:24.2]} 34... Kd7
{[%clk 0:01:30.1]} 35. b4 {[%clk 0:00:21.8]} 35... Kc6 {[%clk 0:01:27.7]} 36.
Nc5 {[%clk 0:00:18.6]} 36... Kb5 {[%clk 0:01:24]} 37. Nxe4 {[%clk 0:00:17]}
37... dxe4 {[%clk 0:01:23.9]} 38. Kb3 {[%clk 0:00:17.4]} 38... e3 {[%clk
0:01:21.8]} 39. c4+ {[%clk 0:00:16.9]} 39... Ka6 {[%clk 0:01:22]} 40. Ra1 {[%clk
0:00:08.3]} 40... e2 {[%clk 0:01:19.4]} 41. b5+ {[%clk 0:00:08.6]} 41... Ka7
{[%clk 0:01:19.6]} 42. a6 {[%clk 0:00:07.8]} 0-1